fUST/lending_fUST_20250220
["ID","MTS","AMOUNT","RATE_DAILY","PERIOD"]
[353685646,1739989840884,-500.0,0.00013863,2]
[353685647,1739989840893,-500.0,0.00013863,2]
[353685648,1739989840903,-500.0,0.00013863,2]
[353685649,1739989840912,-500.0,0.00013863,2]
[353685650,1739989840921,-500.0,0.00013863,2]
[353685651,1739989840931,-746.15,0.00013863,2]
[353685652,1739989840940,-500.0,0.00013881,2]
[353685653,1739989840949,-500.0,0.00013881,2]
[353685654,1739989840959,-151.0,0.000139,2]
[353685655,1739989840968,-500.0,0.00013945,2]
[353685656,1739989840978,-500.0,0.00013945,2]
[353685657,1739989840987,-500.0,0.00013945,2]
[353685659,1739989840996,-231.37560907,0.00013945,2]
[353685661,1739989841005,-436.85,0.00013945,2]
[353685663,1739989841015,-500.0,0.00013945,2]
[353685665,1739989841024,-500.0,0.00013945,2]
[353685667,1739989841033,-505.47012224,0.00013945,2]
[353685669,1739989841043,-500.0,0.00013945,2]
[353685671,1739989841054,-237.44,0.00013945,2]
[353685673,1739989841067,-500.0,0.00013945,2]
[353685675,1739989841077,-500.0,0.00013945,2]
[353685677,1739989841087,-500.0,0.00013945,2]
[353685679,1739989841096,-500.0,0.00013945,2]
[353685681,1739989841107,-500.0,0.00013945,2]
[353685683,1739989841117,-500.0,0.00013945,2]
[353685685,1739989841126,-500.0,0.00013945,2]
[353685687,1739989841136,-500.0,0.00013945,2]
[353685689,1739989841145,-500.0,0.00013945,2]
[353685691,1739989841155,-500.0,0.00013945,2]
[353685693,1739989841164,-500.0,0.00013945,2]
[353685695,1739989841173,-500.0,0.00013945,2]
[353685697,1739989841182,-500.0,0.00013945,2]
[353685699,1739989841191,-500.0,0.00013945,2]
[353685701,1739989841200,-500.0,0.00013945,2]
[353685703,1739989841209,-263.31,0.00013945,2]
[353685705,1739989841219,-500.0,0.00013945,2]
[353685707,1739989841228,-1097.18,0.00013945,2]
[353685710,1739989841238,-500.0,0.00013945,2]
[353685712,1739989841247,-500.0,0.00013945,2]
[353685714,1739989841257,-500.0,0.00013945,2]
[353685716,1739989841266,-500.0,0.00013945,2]
[353685718,1739989841275,-623.43,0.00013945,2]
[353685720,1739989841284,-500.0,0.00013945,2]
[353685722,1739989841294,-500.0,0.00013945,2]
[353685724,1739989841303,-500.0,0.00013945,2]
[353685726,1739989841312,-500.0,0.00013945,2]
[353685728,1739989841321,-500.0,0.00013945,2]
[353685730,1739989841330,-500.0,0.00013945,2]
[353685732,1739989841340,-1264.09,0.00013945,2]
[353685733,1739989841349,-5751.66,0.00013945,2]
[353685735,1739989841359,-500.0,0.00013945,2]
[353685737,1739989841368,-500.0,0.00013945,2]
[353685740,1739989841377,-1024.64,0.00013945,2]
[353685742,1739989841387,-500.0,0.00013945,2]
[353685743,1739989841396,-500.0,0.00013945,2]
[353685746,1739989841405,-500.0,0.00013945,2]
[353685748,1739989841415,-500.0,0.00013945,2]
[353685750,1739989841424,-500.0,0.00013945,2]
[353685752,1739989841433,-500.0,0.00013945,2]
[353685754,1739989841442,-500.0,0.00013945,2]
[353685756,1739989841451,-500.0,0.00013945,2]
[353685758,1739989841460,-500.0,0.00013945,2]
[353685760,1739989841469,-500.0,0.00013945,2]
[353685762,1739989841479,-500.0,0.00013945,2]
[353685764,1739989841488,-500.0,0.00013945,2]
[353685766,1739989841497,-500.0,0.00013945,2]
[353685768,1739989841507,-500.0,0.00013945,2]
[353685770,1739989841516,-231.8847763,0.00013945,2]
[353685772,1739989841525,-500.0,0.00013945,2]
[353685774,1739989841535,-746.15,0.00013945,2]
[353685776,1739989841544,-500.0,0.00013972,2]
[353685778,1739989841554,-406.47818565,0.0001399,2]
[353685780,1739989841564,-4096.74829003,0.0001399,2]
[353685782,1739989841573,-1316.83465032,0.00014,2]
[353685784,1739989841582,-500.0,0.00014027,2]
[353685786,1739989841592,-500.0,0.00014027,2]
[353685788,1739989841601,-189.78427045,0.00014027,2]
[353685790,1739989841610,-500.0,0.00014027,2]
[353685792,1739989841619,-500.0,0.00014027,2]
[353685794,1739989841629,-500.0,0.00014027,2]
[353685796,1739989841638,-500.0,0.00014027,2]
[353685798,1739989841648,-500.0,0.00014027,2]
[353685800,1739989841657,-500.0,0.00014027,2]
[353685802,1739989841666,-500.0,0.00014027,2]
[353685804,1739989841675,-500.0,0.00014027,2]
[353685806,1739989841685,-500.0,0.00014027,2]
[353685808,1739989841695,-191.51611937,0.00014027,2]
[353685810,1739989841704,-500.0,0.00014027,2]
[353685812,1739989841713,-500.0,0.00014027,2]
[353685814,1739989841723,-500.0,0.00014027,2]
[353685816,1739989841732,-500.0,0.00014027,2]
[353685818,1739989841742,-500.0,0.00014027,2]
[353685820,1739989841751,-500.0,0.00014027,2]
[353685822,1739989841761,-1097.18,0.00014027,2]
[353685824,1739989841770,-500.0,0.00014027,2]
[353685826,1739989841780,-500.0,0.00014027,2]
[353685828,1739989841790,-500.0,0.00014027,2]
[353685830,1739989841799,-500.0,0.00014027,2]
[353685832,1739989841809,-500.0,0.00014027,2]
[353685834,1739989841818,-482.59,0.00014027,2]
[353685836,1739989841827,-500.0,0.00014027,2]
[353685838,1739989841836,-500.0,0.00014027,2]
[353685840,1739989841845,-500.0,0.00014027,2]
[353685842,1739989841855,-500.0,0.00014027,2]
[353685844,1739989841864,-1264.09,0.00014027,2]
[353685846,1739989841874,-5751.66,0.00014027,2]
[353685848,1739989841884,-500.0,0.00014027,2]
[353685850,1739989841893,-500.0,0.00014027,2]
[353685852,1739989841903,-1024.64,0.00014027,2]
[353685854,1739989841913,-500.0,0.00014027,2]
[353685856,1739989841922,-500.0,0.00014027,2]
[353685858,1739989841931,-500.0,0.00014027,2]
[353685860,1739989841941,-500.0,0.00014027,2]
[353685862,1739989841950,-500.0,0.00014027,2]
[353685864,1739989841959,-500.0,0.00014027,2]
[353685866,1739989841969,-500.0,0.00014027,2]
[353685868,1739989841978,-500.0,0.00014027,2]
[353685870,1739989841987,-500.0,0.00014027,2]
[353685872,1739989841997,-500.0,0.00014027,2]
[353685874,1739989842007,-500.0,0.00014027,2]
[353685876,1739989842017,-500.0,0.00014027,2]
[353685878,1739989842026,-500.0,0.00014027,2]
[353685880,1739989842036,-500.0,0.00014027,2]
[353685882,1739989842045,-746.15,0.00014027,2]
[353685884,1739989842059,-500.0,0.00014109,2]
[353685886,1739989842068,-500.0,0.00014109,2]
[353685888,1739989842078,-500.0,0.00014109,2]
[353685890,1739989842087,-500.0,0.00014109,2]
[353685892,1739989842097,-500.0,0.00014109,2]
[353685894,1739989842107,-500.0,0.00014109,2]
[353685896,1739989842117,-500.0,0.00014109,2]
[353685898,1739989842128,-500.0,0.00014109,2]
[353685900,1739989842139,-500.0,0.00014109,2]
[353685902,1739989842148,-207.33024915,0.00014109,2]
[353685904,1739989842158,-500.0,0.00014109,2]
[353685906,1739989842167,-500.0,0.00014109,2]
[353685908,1739989842176,-500.0,0.00014109,2]
[353685910,1739989842186,-500.0,0.00014109,2]
[353685912,1739989842196,-500.0,0.00014109,2]
[353685914,1739989842205,-1097.18,0.00014109,2]
[353685916,1739989842215,-500.0,0.00014109,2]
[353685918,1739989842226,-443.69,0.00014109,2]
[353685920,1739989842236,-500.0,0.00014109,2]
[353685922,1739989842246,-500.0,0.00014109,2]
[353685924,1739989842255,-500.0,0.00014109,2]
[353685926,1739989842265,-218.31616419,0.00014109,2]
[353685928,1739989842274,-1264.09,0.00014109,2]
[353685930,1739989842283,-5751.66,0.00014109,2]
[353685932,1739989842293,-500.0,0.00014109,2]
[353685935,1739989842302,-506.48,0.00014109,2]
[353685938,1739989842312,-1024.64,0.00014109,2]
[353685941,1739989842321,-500.0,0.00014109,2]
[353685944,1739989842331,-500.0,0.00014109,2]
[353685947,1739989842340,-500.0,0.00014109,2]
[353685949,1739989842350,-500.0,0.00014109,2]
[353685951,1739989842360,-500.0,0.00014109,2]
[353685953,1739989842370,-500.0,0.00014109,2]
[353685955,1739989842379,-500.0,0.00014109,2]
[353685957,1739989842389,-500.0,0.00014109,2]
[353685959,1739989842399,-500.0,0.00014109,2]
[353685961,1739989842409,-500.0,0.00014109,2]
[353685963,1739989842418,-500.0,0.00014109,2]
[353685965,1739989842427,-500.0,0.00014109,2]
[353685967,1739989842436,-500.0,0.00014109,2]
[353685969,1739989842446,-746.15,0.00014109,2]
[353685971,1739989842455,-500.0,0.00014191,2]
[353685973,1739989842465,-500.0,0.00014191,2]
[353685975,1739989842474,-500.0,0.00014191,2]
[353685977,1739989842484,-500.0,0.00014191,2]
[353685979,1739989842493,-500.0,0.00014191,2]
[353685981,1739989842502,-500.0,0.00014191,2]
[353685983,1739989842511,-500.0,0.00014191,2]
[353685985,1739989842521,-500.0,0.00014191,2]
[353685987,1739989842530,-500.0,0.00014191,2]
[353685989,1739989842540,-405.81352981,0.00014191,2]
[353685991,1739989842549,-500.0,0.00014191,2]
[353685993,1739989842559,-526.8,0.00014191,2]
[353685995,1739989842568,-280.75,0.00014191,2]
[353685997,1739989842578,-163.53,0.00014191,2]
[353685999,1739989842587,-1097.18,0.00014191,2]
[353686001,1739989842596,-358.34,0.00014191,2]
[353686003,1739989842606,-517.64,0.00014191,2]
[353686005,1739989842616,-500.0,0.00014191,2]
[353686007,1739989842625,-500.0,0.00014191,2]
[353686009,1739989842635,-1264.09,0.00014191,2]
[353686011,1739989842644,-5751.66,0.00014191,2]
[353686013,1739989842655,-500.0,0.00014191,2]
[353686015,1739989842664,-1024.64,0.00014191,2]
[353686017,1739989842673,-500.0,0.00014191,2]
[353686019,1739989842682,-500.0,0.00014191,2]
[353686021,1739989842691,-291.03,0.00014191,2]
[353686023,1739989842701,-242.24,0.00014191,2]
[353686025,1739989842710,-500.0,0.00014191,2]
[353686027,1739989842720,-500.0,0.00014191,2]
[353686029,1739989842729,-500.0,0.00014191,2]
[353686031,1739989842739,-500.0,0.00014191,2]
[353686033,1739989842749,-500.0,0.00014191,2]
[353686035,1739989842759,-500.0,0.00014191,2]
[353686037,1739989842769,-500.0,0.00014191,2]
[353686039,1739989842780,-500.0,0.00014191,2]
[353686041,1739989842790,-500.0,0.00014191,2]
[353686043,1739989842800,-746.15,0.00014191,2]
[353686045,1739989842810,-255.8727335,0.00014213,2]
[353686047,1739989842819,-500.0,0.00014236,2]
[353686050,1739989842829,-500.0,0.00014246,2]
[353686053,1739989842839,-1007.8268122,0.00014247,2]
[353686056,1739989842849,-500.0,0.00014273,2]
[353686059,1739989842858,-500.0,0.00014273,2]
[353686061,1739989842868,-547.96,0.00014273,2]
[353686064,1739989842877,-197.81813284,0.00014273,2]
[353686067,1739989842887,-500.0,0.00014273,2]
[353686069,1739989842896,-500.0,0.00014273,2]
[353686071,1739989842906,-500.0,0.00014273,2]
[353686073,1739989842916,-451.98,0.00014273,2]
[353686075,1739989842925,-1097.18,0.00014273,2]
[353686077,1739989842935,-500.0,0.00014273,2]
[353686079,1739989842944,-500.0,0.00014273,2]
[353686081,1739989842954,-1264.09,0.00014273,2]
[353686083,1739989842963,-5751.66,0.00014273,2]
[353686085,1739989842972,-500.0,0.00014273,2]
[353686087,1739989842982,-1024.64,0.00014273,2]
[353686089,1739989842991,-500.0,0.00014273,2]
[353686091,1739989843000,-500.0,0.00014273,2]
[353686093,1739989843010,-544.0,0.00014273,2]
[353686095,1739989843020,-500.0,0.00014273,2]
[353686097,1739989843029,-500.0,0.00014273,2]
[353686099,1739989843039,-500.0,0.00014273,2]
[353686101,1739989843048,-500.0,0.00014273,2]
[353686103,1739989843061,-500.0,0.00014273,2]
[353686105,1739989843072,-500.0,0.00014273,2]
[353686107,1739989843082,-500.0,0.00014273,2]
[353686109,1739989843091,-500.0,0.00014273,2]
[353686111,1739989843102,-746.15,0.00014273,2]
[353686113,1739989843111,-151.0,0.000143,2]
[353686115,1739989843121,-500.0,0.00014356,2]
[353686128,1739989843226,-500.0,0.00014356,2]
[353686130,1739989843236,-205.63443022,0.00014356,2]
[353686132,1739989843246,-500.0,0.00014356,2]
[353686134,1739989843256,-500.0,0.00014356,2]
[353686136,1739989843266,-1097.18,0.00014356,2]
[353686138,1739989843275,-500.0,0.00014356,2]
[353686140,1739989843284,-500.0,0.00014356,2]
[353686142,1739989843293,-1264.09,0.00014356,2]
[353686144,1739989843302,-5751.66,0.00014356,2]
[353686146,1739989843312,-500.0,0.00014356,2]
[353686148,1739989843321,-1024.64,0.00014356,2]
[353686150,1739989843330,-500.0,0.00014356,2]
[353686152,1739989843339,-500.0,0.00014356,2]
[353686154,1739989843349,-500.0,0.00014356,2]
[353686156,1739989843358,-500.0,0.00014356,2]
[353686158,1739989843369,-500.0,0.00014356,2]
[353686160,1739989843378,-500.0,0.00014356,2]
[353686162,1739989843388,-500.0,0.00014356,2]
[353686164,1739989843397,-500.0,0.00014356,2]
[353686166,1739989843406,-500.0,0.00014356,2]
[353686168,1739989843416,-342.7,0.00014356,2]
[353686170,1739989843425,-746.15,0.00014356,2]
[353686172,1739989843434,-179.69451932,0.000144,2]
[353686174,1739989843444,-181.1520549,0.0001442,2]
[353686176,1739989843454,-500.0,0.00014429,2]
[353686178,1739989843463,-500.0,0.00014438,2]
[353686180,1739989843473,-500.0,0.00014438,2]
[353686182,1739989843483,-500.0,0.00014438,2]
[353686184,1739989843494,-500.0,0.00014438,2]
[353686186,1739989843504,-1097.18,0.00014438,2]
[353686188,1739989843513,-500.0,0.00014438,2]
[353686190,1739989843523,-500.0,0.00014438,2]
[353686192,1739989843533,-1264.09,0.00014438,2]
[353686194,1739989843543,-5751.66,0.00014438,2]
[353686196,1739989843554,-500.0,0.00014438,2]
[353686198,1739989843565,-1024.64,0.00014438,2]
[353686200,1739989843576,-205.44172371,0.00014438,2]
[353686202,1739989843586,-500.0,0.00014438,2]
[353686204,1739989843596,-500.0,0.00014438,2]
[353686206,1739989843605,-500.0,0.00014438,2]
[353686208,1739989843616,-258.08,0.00014438,2]
[353686210,1739989843625,-573.04,0.00014438,2]
[353686212,1739989843636,-500.0,0.00014438,2]
[353686214,1739989843646,-500.0,0.00014438,2]
[353686216,1739989843656,-500.0,0.00014438,2]
[353686218,1739989843666,-746.15,0.00014438,2]
[353686220,1739989843676,-700.0,0.00014438,2]
[353686222,1739989843687,-7438.69753278,0.0001446,2]
[353686224,1739989843697,-224392.04207809,0.000145,2]
[353686227,1739989843707,-409.55912465,0.0001452,2]
[353686229,1739989843717,-500.0,0.0001452,2]
[353686231,1739989843726,-500.0,0.0001452,2]
[353686233,1739989843735,-500.0,0.0001452,2]
[353686235,1739989843746,-500.0,0.0001452,2]
[353686237,1739989843755,-1097.18,0.0001452,2]
[353686239,1739989843765,-500.0,0.0001452,2]
[353686241,1739989843775,-500.0,0.0001452,2]
[353686243,1739989843786,-1264.09,0.0001452,2]
[353686245,1739989843795,-5751.66,0.0001452,2]
[353686247,1739989843804,-500.0,0.0001452,2]
[353686249,1739989843814,-1024.64,0.0001452,2]
[353686251,1739989843824,-184.16,0.0001452,2]
[353686253,1739989843833,-500.0,0.0001452,2]
[353686255,1739989843842,-500.0,0.0001452,2]
[353686257,1739989843851,-461.08,0.0001452,2]
[353686259,1739989843861,-500.0,0.0001452,2]
[353686261,1739989843872,-500.0,0.0001452,2]
[353686263,1739989843882,-746.15,0.0001452,2]
[353686265,1739989843892,-500.0,0.00014602,2]
[353686267,1739989843901,-500.0,0.00014602,2]
[353686269,1739989843911,-500.0,0.00014602,2]
[353686271,1739989843921,-179.29,0.00014602,2]
[353686273,1739989843931,-1097.18,0.00014602,2]
[353686275,1739989843941,-500.0,0.00014602,2]
[353686277,1739989843951,-500.0,0.00014602,2]
[353686279,1739989843960,-1264.09,0.00014602,2]
[353686281,1739989843970,-5751.66,0.00014602,2]
[353686283,1739989843981,-500.0,0.00014602,2]
[353686285,1739989843990,-1024.64,0.00014602,2]
[353686287,1739989843999,-500.0,0.00014602,2]
[353686289,1739989844009,-500.0,0.00014602,2]
[353686291,1739989844018,-632.36,0.00014602,2]
[353686293,1739989844029,-500.0,0.00014602,2]
[353686295,1739989844039,-746.15,0.00014602,2]
[353686297,1739989844048,-392.86,0.00014684,2]
[353686299,1739989844060,-500.0,0.00014684,2]
[353686301,1739989844069,-500.0,0.00014684,2]
[353686303,1739989844078,-1097.18,0.00014684,2]
[353686305,1739989844088,-500.0,0.00014684,2]
[353686307,1739989844099,-500.0,0.00014684,2]
[353686309,1739989844109,-1264.09,0.00014684,2]
[353686311,1739989844121,-5751.66,0.00014684,2]
[353686313,1739989844130,-500.0,0.00014684,2]
[353686315,1739989844141,-1024.64,0.00014684,2]
[353686317,1739989844151,-500.0,0.00014684,2]
[353686319,1739989844161,-500.0,0.00014684,2]
[353686321,1739989844171,-500.0,0.00014684,2]
[353686323,1739989844181,-746.15,0.00014684,2]
[353686325,1739989844190,-151.0,0.000147,2]
[353686327,1739989844200,-151.0,0.000147,2]
[353686329,1739989844209,-785.271,0.0001475,2]
[353686331,1739989844218,-169.48170849,0.0001475,2]
[353686333,1739989844228,-188.38,0.00014767,2]
[353686335,1739989844237,-285.74,0.00014767,2]
[353686337,1739989844246,-1097.18,0.00014767,2]
[353686339,1739989844255,-500.0,0.00014767,2]
[353686341,1739989844265,-500.0,0.00014767,2]
[353686343,1739989844273,-1264.09,0.00014767,2]
[353686345,1739989844282,-5751.66,0.00014767,2]
[353686347,1739989844292,-500.0,0.00014767,2]
[353686349,1739989844301,-1024.64,0.00014767,2]
[353686351,1739989844311,-500.0,0.00014767,2]
[353686353,1739989844321,-500.0,0.00014767,2]
[353686355,1739989844330,-500.0,0.00014767,2]
[353686357,1739989844339,-746.15,0.00014767,2]
[353686359,1739989844349,-500.0,0.00014784,2]
[353686361,1739989844358,-151.0,0.000148,2]
[353686363,1739989844369,-255.8727335,0.00014827,2]
[353686365,1739989844378,-1097.18,0.00014849,2]
[353686367,1739989844387,-500.0,0.00014849,2]
[353686369,1739989844396,-500.0,0.00014849,2]
[353686371,1739989844405,-1264.09,0.00014849,2]
[353686373,1739989844415,-5751.66,0.00014849,2]
[353686375,1739989844424,-500.0,0.00014849,2]
[353686377,1739989844433,-1024.64,0.00014849,2]
[353686379,1739989844442,-500.0,0.00014849,2]
[353686381,1739989844452,-500.0,0.00014849,2]
[353686383,1739989844461,-500.0,0.00014849,2]
[353686385,1739989844470,-746.15,0.00014849,2]
[353686387,1739989844479,-500.0,0.00014873,2]
[353686389,1739989844489,-500.0,0.00014873,2]
[353686391,1739989844498,-501.30101814,0.00014873,2]
[353686393,1739989844507,-500.0,0.00014873,2]
[353686395,1739989844516,-184.97113629,0.00014873,2]
[353686397,1739989844526,-465675.76837062,0.000149,2]
[353686407,1739989844622,-464.96799901,0.000149,2]
[353686418,1739989844712,-500.0,0.00013698,2]
[353686420,1739989844722,-500.0,0.0001378,2]
[353686422,1739989844732,-500.0,0.00013863,2]
[353686424,1739989844742,-175.6,0.00013945,2]
[353686426,1739989844752,-86936.832395,0.000149,2]
[353686436,1739989844831,-500.0,0.00013698,2]
[353686438,1739989844841,-500.0,0.0001378,2]
[353686440,1739989844850,-254.62531868,0.00013863,2]
[353686442,1739989844860,-70863.96996037,0.000149,2]
[353686443,1739989844870,-42338.12105402,0.000149,2]
[353686445,1739989844879,-568.57606602,0.000149,2]
[353686447,1739989844889,-1097.18,0.00014931,2]
[353686449,1739989844898,-500.0,0.00014931,2]
[353686452,1739989844908,-633.32,0.00014931,2]
[353686453,1739989844918,-1264.09,0.00014931,2]
[353686455,1739989844927,-5751.66,0.00014931,2]
[353686456,1739989844936,-563.16,0.00014931,2]
[353686457,1739989844945,-1024.64,0.00014931,2]
[353686458,1739989844954,-500.0,0.00014931,2]
[353686459,1739989844964,-500.0,0.00014931,2]
[353686460,1739989844973,-500.0,0.00014931,2]
[353686461,1739989844983,-746.15,0.00014931,2]
[353686462,1739989844992,-587.0,0.00014997,2]
[353686463,1739989845001,-501.56720577,0.00014998,2]
[353686464,1739989845010,-6406.91950664,0.00015,3]
[353686465,1739989845019,-3646.4315377,0.00015,2]
[353686466,1739989845028,-1097.18,0.00015013,2]
[353686467,1739989845037,-500.0,0.00015013,2]
[353686468,1739989845046,-1264.09,0.00015013,2]
[353686469,1739989845057,-5751.66,0.00015013,2]
[353686470,1739989845068,-1024.64,0.00015013,2]
[353686471,1739989845077,-500.0,0.00015013,2]
[353686472,1739989845087,-220.4,0.00015013,2]
[353686473,1739989845097,-500.0,0.00015013,2]
[353686474,1739989845106,-746.15,0.00015013,2]
[353686475,1739989845116,-1097.18,0.00015095,2]
[353686477,1739989845125,-500.0,0.00015095,2]
[353686478,1739989845136,-1264.09,0.00015095,2]
[353686481,1739989845146,-5751.66,0.00015095,2]
[353686483,1739989845155,-1024.64,0.00015095,2]
[353686485,1739989845164,-500.0,0.00015095,2]
[353686487,1739989845173,-500.0,0.00015095,2]
[353686489,1739989845182,-746.15,0.00015095,2]
[353686492,1739989845192,-151.0,0.000151,2]
[353686495,1739989845201,-1097.18,0.00015178,2]
[353686498,1739989845210,-576.59,0.00015178,2]
[353686501,1739989845220,-1264.09,0.00015178,2]
[353686503,1739989845229,-5751.66,0.00015178,2]
[353686505,1739989845238,-1024.64,0.00015178,2]
[353686508,1739989845248,-528.84,0.00015178,2]
[353686510,1739989845258,-500.0,0.00015178,2]
[353686512,1739989845267,-746.15,0.00015178,2]
[353686514,1739989845276,-1097.18,0.0001526,2]
[353686516,1739989845285,-1264.09,0.0001526,2]
[353686518,1739989845295,-5751.66,0.0001526,2]
[353686520,1739989845305,-1024.64,0.0001526,2]
[353686522,1739989845315,-500.0,0.0001526,2]
[353686524,1739989845324,-746.15,0.0001526,2]
[353686526,1739989845333,-181.15205488,0.0001529,2]
[353686538,1739989845431,-1097.18,0.00015342,2]
[353686540,1739989845440,-1264.09,0.00015342,2]
[353686542,1739989845449,-5751.66,0.00015342,2]
[353686544,1739989845458,-1024.64,0.00015342,2]
[353686546,1739989845467,-500.0,0.00015342,2]
[353686548,1739989845477,-746.15,0.00015342,2]
[353686549,1739989845486,-160.0,0.000154,3]
[353686550,1739989845495,-500.0,0.00015421,2]
[353686552,1739989845505,-500.0,0.00015421,2]
[353686555,1739989845515,-1097.18,0.00015424,2]
[353686556,1739989845525,-1264.09,0.00015424,2]
[353686558,1739989845534,-5751.66,0.00015424,2]
[353686560,1739989845544,-1024.64,0.00015424,2]
[353686562,1739989845553,-500.0,0.00015424,2]
[353686564,1739989845563,-746.15,0.00015424,2]
[353686566,1739989845572,-255.8727335,0.00015442,2]
[353686568,1739989845581,-503.7215074,0.00015457,2]
[353686570,1739989845591,-151.0,0.000155,2]
[353686572,1739989845601,-1097.18,0.00015506,2]
[353686574,1739989845611,-1264.09,0.00015506,2]
[353686576,1739989845621,-5751.66,0.00015506,2]
[353686578,1739989845632,-1024.64,0.00015506,2]
[353686580,1739989845642,-500.0,0.00015506,2]
[353686581,1739989845652,-746.15,0.00015506,2]
[353686584,1739989845662,-503.7215074,0.00015557,2]
[353686586,1739989845672,-1097.35,0.00015589,2]
[353686588,1739989845682,-1264.13,0.00015589,2]
[353686589,1739989845693,-5751.782,0.00015589,2]
[353686591,1739989845704,-1024.6462753,0.00015589,2]
[353686593,1739989845714,-419.88,0.00015589,2]
[353686595,1739989845724,-746.28,0.00015589,2]
[353686596,1739989845734,-503.7215074,0.00015657,2]
[353686597,1739989845744,-503.7215074,0.00015757,2]
[353686598,1739989845755,-256.77241,0.00015775,2]
[353686599,1739989845767,-700.0,0.00015808,2]
[353686600,1739989845778,-503.7215074,0.00015857,2]
[353686601,1739989845789,-151.0,0.000159,2]
[353686602,1739989845799,-503.7215074,0.00015957,2]
[353686603,1739989845808,-255.8727335,0.00016056,2]
[353686604,1739989845817,-503.7215074,0.00016057,2]
[353686605,1739989845826,-503.7215074,0.00016157,2]
[353686606,1739989845836,-181.15205488,0.0001616,2]
[353686607,1739989845845,-503.7215074,0.00016257,2]
[353686608,1739989845855,-151.0,0.000163,2]
[353686609,1739989845864,-503.7215074,0.00016357,2]
[353686610,1739989845876,-12000.0,0.00016438,2]
[353686611,1739989845885,-823.0,0.00016456,2]
[353686612,1739989845895,-503.7215074,0.00016457,2]
[353686613,1739989845904,-10052.38462478,0.000165,2]
[353686614,1739989845914,-503.7215074,0.00016557,2]
[353686615,1739989845923,-503.7215074,0.00016657,2]
[353686616,1739989845933,-255.8727335,0.00016671,2]
[353686617,1739989845943,-160.0,0.000167,4]
[353686618,1739989845952,-503.7215074,0.00016757,2]
[353686619,1739989845962,-151.0,0.000168,2]
[353686620,1739989845971,-503.7215074,0.00016857,2]
[353686621,1739989845980,-498.57453263,0.0001687,2]
[353686622,1739989845991,-503.7215074,0.00016957,2]
[353686623,1739989846001,-14092.53,0.00017,2]
[353686624,1739989846012,-1319.90364068,0.00017,2]
[353686625,1739989846021,-181.15205488,0.0001703,2]
[353686626,1739989846030,-503.7215074,0.00017057,2]
[353686627,1739989846040,-151.0,0.000171,2]
[353686628,1739989846050,-263.86042154,0.0001711,2]
[353686629,1739989846067,-202.64079875,0.0001711,2]
[353686630,1739989846076,-503.7215074,0.00017157,2]
[353686631,1739989846085,-700.0,0.00017178,2]
[353686632,1739989846095,-151.0,0.000172,2]
[353686633,1739989846105,-503.7215074,0.00017257,2]
[353686634,1739989846114,-255.8727335,0.00017285,2]